fUST/lending_fUST_20240907
["ID","MTS","AMOUNT","RATE_DAILY","PERIOD"]
[337502918,1725720645228,-152.79300731,0.00294249,120]
[337502920,1725720645237,-78497.5597529,0.00295463,90]
[337502922,1725720645251,-20000.0,0.00297,120]
[337502924,1725720645260,-30717.89879965,0.0029999,120]
[337502926,1725720645270,-1129.0,0.003,120]
[337502928,1725720645280,-2498.24475398,0.003,120]
[337502930,1725720645290,-50000.0,0.003,120]
[337502932,1725720645299,-506.74567616,0.003,120]
[337502934,1725720645309,-300.0,0.003,120]
[337502936,1725720645319,-500.0,0.003,120]
[337502938,1725720645328,-5000.0,0.003,120]
[337502940,1725720645337,-200.0,0.003,120]
[337502942,1725720645346,-908.6596565,0.003,120]
[337502944,1725720645356,-1000.0,0.003,120]
[337502946,1725720645365,-2032.85207495,0.003,120]
[337502948,1725720645375,-5000.0,0.00301369,120]
[337502950,1725720645384,-5000.0,0.00301369,120]
[337502953,1725720645395,-5134.73505623,0.00301369,120]
[337502955,1725720645407,-152.79300731,0.00304249,120]
[337502957,1725720645417,-152.79300731,0.00314249,120]
[337502959,1725720645426,-30000.0,0.00319,120]
[337502961,1725720645437,-1000.0,0.0032,120]
[337502963,1725720645447,-152.79300731,0.00324249,120]
[337502965,1725720645457,-5000.0,0.00328767,120]
[337502967,1725720645467,-3884.45625509,0.00328767,120]
[337502969,1725720645476,-749.92,0.00329,60]
[337502971,1725720645485,-152.79300731,0.00334249,120]
[337502973,1725720645495,-55000.0,0.00335999,120]
[337502975,1725720645506,-152.79300731,0.00344249,120]
[337502977,1725720645515,-5000.0,0.003488,120]
[337502979,1725720645525,-2498.89558752,0.0035,120]
[337502981,1725720645534,-5000.0,0.0035,90]
[337502983,1725720645543,-152.79300731,0.00354249,120]
[337502985,1725720645554,-5000.0,0.00356164,120]
[337502987,1725720645572,-152.79300731,0.00364249,120]
[337502989,1725720645582,-152.79300731,0.00374249,120]
[337502991,1725720645591,-282.85082435,0.00383561,120]
[337502993,1725720645600,-152.79300731,0.00384249,120]
[337502995,1725720645610,-156.7022557,0.003845,120]
[337502997,1725720645619,-30000.0,0.003895,120]
[337502999,1725720645629,-78497.5597529,0.00393164,120]
[337503001,1725720645638,-152.79300731,0.00394249,120]
[337503003,1725720645647,-200.0,0.004,120]
[337503007,1725720645657,-300.0,0.004,120]
[337503009,1725720645667,-2498.89558752,0.004,120]
[337503011,1725720645676,-161.0,0.004,120]
[337503013,1725720645686,-200.0,0.004,120]
[337503015,1725720645695,-200.0,0.004,90]
[337503017,1725720645704,-152.79300731,0.00404249,120]
[337503019,1725720645714,-152.79300731,0.00414249,120]
[337503021,1725720645723,-638.60977079,0.00417858,120]
[337503023,1725720645733,-30000.0,0.00419,120]
[337503025,1725720645743,-20000.0,0.00419,120]
[337503027,1725720645752,-1500.0,0.0042,120]
[337503029,1725720645762,-152.79300731,0.00424249,120]
[337503031,1725720645771,-152.79300731,0.00434249,120]
[337503033,1725720645781,-1500.0,0.0044,120]
[337503035,1725720645790,-152.79300731,0.00444249,120]
[337503038,1725720645803,-2498.89558752,0.0045,120]
[337503040,1725720645813,-5000.0,0.0045,90]
[337503042,1725720645823,-152.79300731,0.00454249,120]
[337503044,1725720645833,-1500.0,0.0046,120]
[337503046,1725720645843,-152.79300731,0.00464249,120]
[337503048,1725720645852,-2000.0,0.0046799,120]
[337503050,1725720645861,-181.58977073,0.00469271,120]
[337503052,1725720645871,-152.79300731,0.00474249,120]
[337503054,1725720645880,-1500.0,0.0048,120]
[337503056,1725720645890,-156.82741974,0.004807,120]
[337503058,1725720645899,-152.79300731,0.00484249,120]
[337503060,1725720645908,-30000.0,0.004895,120]
[337503062,1725720645919,-78497.5597529,0.00490817,120]
[337503064,1725720645929,-152.79300731,0.00494249,120]
[337503066,1725720645940,-55000.0,0.00498,120]
[337503068,1725720645950,-5000.0,0.004988,120]
[337503070,1725720645961,-20000.0,0.00498987,120]
[337503072,1725720645973,-63948.66059569,0.00499999,120]
[337503074,1725720645987,-1000.0,0.00499999,120]
[337503076,1725720645997,-300.0,0.005,120]
[337503078,1725720646006,-2498.89558752,0.005,120]
[337503080,1725720646017,-200.0,0.005,120]
[337503082,1725720646028,-506.74567616,0.005,120]
[337503084,1725720646038,-749.92,0.005,60]
[337503085,1725720646049,-5000.0,0.005,120]
[337503087,1725720646063,-152.79300731,0.00504249,120]
[337503089,1725720646072,-152.79300731,0.00514249,120]
[337503091,1725720646081,-638.60977079,0.00516072,120]
[337503092,1725720646090,-8244.699999,0.00519,120]
[337503094,1725720646100,-1500.0,0.0052,120]
[337503096,1725720646109,-152.79300731,0.00524249,120]
[337503098,1725720646119,-152.79300731,0.00534249,120]
[337503100,1725720646129,-1500.0,0.0054,120]
[337503102,1725720646140,-152.79300731,0.00544249,120]
[337503104,1725720646151,-100000.0,0.005444,30]
[337503106,1725720646165,-2498.89558752,0.0055,120]
[337503108,1725720646177,-5000.0,0.0055,90]
[337503110,1725720646189,-152.79300731,0.00554249,120]
[337503112,1725720646200,-1500.0,0.0056,120]
[337503114,1725720646212,-152.79300731,0.00564249,120]
[337503116,1725720646224,-204.3306202,0.00564658,120]
[337503118,1725720646235,-153.0,0.00564658,120]
[337503120,1725720646247,-153.0,0.00565479,120]
[337503122,1725720646258,-255.9068108,0.00565479,120]
[337503124,1725720646269,-152.79300731,0.00574249,120]
[337503125,1725720646279,-164.01335515,0.005775,120]
[337503127,1725720646288,-1500.0,0.0058,120]
[337503129,1725720646298,-152.79300726,0.00584249,120]
[337503131,1725720646308,-2000.0,0.005888,120]
[337503133,1725720646319,-30000.0,0.005895,120]
[337503135,1725720646330,-78497.5597529,0.00590062,120]
[337503137,1725720646340,-30000.0,0.00598987,120]
[337503139,1725720646350,-300.0,0.006,120]
[337503141,1725720646360,-2498.89558752,0.006,120]
[337503142,1725720646371,-161.0,0.006,120]
[337503145,1725720646382,-468.36995457,0.006,120]
[337503146,1725720646392,-638.60977079,0.00614287,120]
[337503148,1725720646403,-1500.0,0.0062,120]
[337503150,1725720646415,-1035.92299936,0.0064,120]
[337503153,1725720646429,-1500.0,0.0064,120]
[337503155,1725720646441,-2498.89558752,0.0065,120]
[337503157,1725720646454,-1500.0,0.0066,120]
[337503158,1725720646464,-182.73417507,0.006733,120]
[337503160,1725720646474,-1500.0,0.0068,120]
[337503162,1725720646485,-250000.0,0.006894,30]
[337503164,1725720646496,-30000.0,0.006895,120]
[337503166,1725720646507,-39248.7798765,0.00690697,120]
[337503167,1725720646521,-10000.0,0.006988,120]
[337503169,1725720646532,-1000.0,0.00699999,120]
[337503171,1725720646546,-2498.89558752,0.007,120]
[337503173,1725720646557,-4677.96573609,0.007,120]
[337503175,1725720646568,-5000.0,0.007,90]
[337503177,1725720646580,-300.0,0.007,120]
[337503179,1725720646591,-506.74567616,0.007,120]
[337503180,1725720646604,-26958.43721341,0.0071,120]
[337503182,1725720646614,-638.60977079,0.00712577,120]
[337503184,1725720646624,-3000.0,0.00717,30]
[337503186,1725720646637,-20000.0,0.00719,120]
[337503188,1725720646649,-1500.0,0.0072,120]
[337503190,1725720646660,-42086.50570327,0.00727,120]
[337503191,1725720646671,-632.3805438,0.00727,120]
[337503193,1725720646683,-3085.92587017,0.00727,120]
[337503195,1725720646694,-276.81816551,0.00727,120]
[337503197,1725720646705,-1000.0,0.00739999,120]
[337503198,1725720646715,-1500.0,0.0074,120]
[337503200,1725720646726,-7236.35263679,0.0074,120]
[337503202,1725720646736,-500.0,0.0074747,120]
[337503203,1725720646747,-1000.0,0.00749999,120]
[337503204,1725720646758,-2498.89558752,0.0075,120]
[337503205,1725720646770,-595.04292346,0.0075,120]
[337503206,1725720646780,-1500.0,0.0075,120]
[337503263,1725721036648,220.0,0.00040321,120]
[337503265,1725721530159,-204.64187889,0.00034417,2]
[337503266,1725721530184,-490.05671189,0.00037429,2]
[337503267,1725721635108,-163.75845055,0.0002658,2]
[337503268,1725721638120,-308.54206708,0.0002658,2]
[337503269,1725721651127,-1059.23851001,0.0002658,2]
[337503270,1725721714368,2001.0,0.00040293,30]
[337503271,1725721746117,-3355.88208049,0.0002658,2]
[337503272,1725721748103,-846.57889187,0.0002658,2]
[337503301,1725721832322,-250.0,0.00034373,2]
[337503303,1725721832332,-250.0,0.00034467,2]
[337503306,1725721832343,-250.0,0.00034562,2]
[337503308,1725721832353,-250.0,0.00034656,2]
[337503310,1725721832366,-250.0,0.0003475,2]
[337503312,1725721832381,-250.0,0.00034845,2]
[337503314,1725721832391,-240.03,0.00034939,2]
[337503316,1725721832403,-9.97,0.00034939,2]
[337503318,1725721832413,-250.0,0.00035033,2]
[337503321,1725721832423,-250.0,0.00035127,2]
[337503323,1725721832433,-250.0,0.00035222,2]
[337503325,1725721832449,-250.0,0.00035316,2]
[337503327,1725721832462,-250.0,0.0003541,2]
[337503330,1725721832474,-195.749861,0.00035504,2]
[337503332,1725721832489,-54.250139,0.00035504,2]
[337503334,1725721832500,-250.0,0.00035599,2]
[337503336,1725721832513,-250.0,0.00035693,2]
[337503339,1725721832525,-250.0,0.00035787,2]
[337503341,1725721832537,-250.0,0.00035882,2]
[337503343,1725721832549,-250.0,0.00035976,2]
[337503345,1725721832560,-250.0,0.0003607,2]
[337503347,1725721832571,-250.0,0.00036164,2]
[337503349,1725721832582,-307.5957309,0.00037086,2]
[337503351,1725721832593,-287.24421156,0.00037255,2]
[337503352,1725721832605,-12.75578844,0.00037255,2]
[337503353,1725721832615,-300.0,0.00037255,2]
[337503354,1725721832627,-704.83366406,0.00037256,2]
[337503355,1725721832641,-22181.7514968,0.00037256,2]
[337503356,1725721832654,-1307.56899671,0.00037256,2]
[337503394,1725721838444,-705.84584243,0.00037256,2]
[337503396,1725721838455,-2509.94328811,0.00037429,2]
[337503398,1725721838467,-450.0,0.00037537,15]
[337503400,1725721838477,-500.0,0.00037537,7]
[337503402,1725721838487,-324.36349148,0.00037537,15]
[337503404,1725721838498,-500.0,0.00037537,7]
[337503406,1725721838508,-500.0,0.00037537,7]
[337503409,1725721838522,-500.0,0.00037537,7]
[337503411,1725721838532,-500.0,0.00037537,7]
[337503413,1725721838544,-500.0,0.00037537,7]
[337503415,1725721838560,-500.0,0.00037537,7]
[337503417,1725721838571,-500.0,0.00037537,7]
[337503419,1725721838581,-500.0,0.00037537,7]
[337503421,1725721838591,-500.0,0.00037537,7]
[337503424,1725721838602,-640.08320157,0.00037537,7]
[337503426,1725721838612,-500.0,0.00037537,7]
[337503428,1725721838622,-500.0,0.00037537,7]
[337503430,1725721838632,-500.0,0.00037537,7]
[337503432,1725721838642,-500.0,0.00037537,7]
[337503434,1725721838652,-500.0,0.00037537,7]
[337503436,1725721838662,-500.0,0.00037537,7]
[337503438,1725721838673,-500.0,0.00037537,7]
[337503439,1725721838683,-500.0,0.00037537,7]
[337503440,1725721838695,-251.0,0.00037538,2]
[337503441,1725721838706,-302.4235931,0.00038635,2]
[337503442,1725721838719,-596.947404,0.00039057,2]
[337503443,1725721838733,-1555.7262011,0.00039085,3]
[337503444,1725721838745,-175.15254619,0.00040213,2]
[337503445,1725721838756,-10276.75396361,0.0004028,2]
[337503446,1725721838768,-9116.96,0.00040291,30]
[337503447,1725721838778,-153.0,0.00041503,2]
[337503448,1725721838788,-153.0,0.00041503,2]
[337503449,1725721838798,-153.0,0.00041503,2]
[337503450,1725721838808,-192.52266932,0.00042362,2]
[337503451,1725721838819,-500.0,0.00058106,120]
[337503452,1725721838830,-596.947404,0.00058586,30]
[337503453,1725721838840,-2500.0,0.0006,120]
[337503454,1725721838851,-150.0,0.00062,120]
[337503455,1725721838862,-150.0,0.00063,120]
[337503456,1725721838872,-200.0,0.00064,120]
[337503457,1725721838882,-200.0,0.00065,12]
[337503458,1725721838893,-750.0,0.00068493,120]
[337503459,1725721838904,-161.078914,0.00068493,120]
[337503460,1725721838914,-2500.0,0.0007,120]
[337503461,1725721838925,-500.0,0.00072097,120]
[337503462,1725721838937,-200.0,0.00072097,120]
[337503463,1725721838948,-500.0,0.00072097,120]
[337503464,1725721838958,-500.0,0.00072097,120]
[337503465,1725721838968,-750.0,0.00072098,120]
[337503466,1725721838979,-750.0,0.00075703,120]
[337503467,1725721838990,-500.0,0.00077577,120]
[337503468,1725721839000,-500.0,0.00077577,120]
[337503469,1725721839011,-497.30950948,0.00077577,120]
[337503470,1725721839022,-161.078914,0.00078278,120]
[337503471,1725721839033,-750.0,0.00079308,120]
[337503472,1725721839042,-2500.0,0.0008,120]
[337503473,1725721839052,-750.0,0.00082913,120]
[337503474,1725721839062,-500.0,0.00083056,120]
[337503475,1725721839072,-500.0,0.00083056,120]
[337503476,1725721839082,-750.0,0.00086518,120]
[337503477,1725721839092,-161.078914,0.00088063,120]
[337503478,1725721839102,-500.0,0.00088536,120]
[337503479,1725721839111,-500.0,0.00088536,120]
[337503480,1725721839121,-268.4186675,0.0009,120]
[337503481,1725721839131,-2500.0,0.0009,120]
[337503482,1725721839142,-9812.19496911,0.00090083,15]
[337503483,1725721839153,-6142.06266678,0.00090083,15]
[337503484,1725721839164,-750.0,0.00090123,120]
[337503485,1725721839174,-9812.19496911,0.00093717,16]
[337503486,1725721839186,-6142.06266678,0.00093717,16]
[337503487,1725721839196,-500.0,0.00093726,120]
[337503488,1725721839206,-500.0,0.00093726,120]
[337503489,1725721839218,-238.75584808,0.00093726,120]
[337503490,1725721839228,-603.99002039,0.00093726,120]
[337503491,1725721839239,-750.0,0.00093727,120]
[337503492,1725721839250,-500.0,0.00094015,120]
[337503493,1725721839261,-500.0,0.00094015,120]
[337503494,1725721839273,-750.0,0.00097332,120]
[337503495,1725721839283,-161.078914,0.00097847,120]
[337503496,1725721839293,-234.18686386,0.00099495,120]
[337503497,1725721839306,-265.81313614,0.00099495,120]
[337503498,1725721839317,-500.0,0.00099495,120]
[337503499,1725721839327,-76.16862227,0.001,120]
[337503500,1725721839342,-2423.83137773,0.001,120]
[337503501,1725721839353,-5000.0,0.001,120]
[337503502,1725721839364,-750.0,0.00100937,120]
[337503503,1725721839495,-750.0,0.00104542,120]
[337503504,1725721839514,-500.0,0.00104974,120]
[337503505,1725721839524,-500.0,0.00104974,120]
[337503506,1725721839534,-161.078914,0.00107632,120]
[337503507,1725721839543,-750.0,0.00108147,120]
[337503508,1725721839554,-500.0,0.00110453,120]
[337503509,1725721839564,-252.75543725,0.00110453,120]
[337503510,1725721839573,-750.0,0.00111752,120]
[337503511,1725721839583,-750.0,0.00115357,120]
[337503512,1725721839593,-500.0,0.00115933,120]
[337503513,1725721839602,-161.078914,0.00117417,120]
[337503514,1725721839612,-750.0,0.00118962,120]
[337503515,1725721839622,-500.0,0.00121412,120]
[337503516,1725721839632,-750.0,0.00122567,120]
[337503517,1725721839641,-1265.74256181,0.00126052,120]
[337503518,1725721839653,-1763.42585346,0.00126052,120]
[337503519,1725721839663,-1000.0,0.00126061,120]
[337503520,1725721839673,-9812.19496911,0.00126151,24]
[337503521,1725721839684,-6142.06266678,0.00126151,24]
[337503522,1725721839693,-750.0,0.00126172,120]
[337503523,1725721839703,-161.078914,0.00127202,120]
[337503524,1725721839713,-750.0,0.00129777,120]
[337503525,1725721839723,-750.0,0.00133381,120]
[337503526,1725721839732,-750.0,0.00136986,120]
[337503527,1725721839742,-161.078914,0.00136986,120]
[337503528,1725721839752,-1795.852308,0.001531,120]
[337503529,1725721839762,-500.0,0.0019,120]
[337503530,1725721839773,-1000.0,0.002,120]
[337503531,1725721839782,-2500.0,0.002,120]
[337503532,1725721839793,-10000.0,0.002,120]
[337503533,1725721839803,-5000.0,0.002,120]
[337503534,1725721839812,-952.38095238,0.0021,120]
[337503535,1725721839823,-909.09090909,0.0022,120]
[337503536,1725721839833,-869.56521739,0.0023,120]
[337503537,1725721839843,-833.33333333,0.0024,120]
[337503538,1725721839853,-800.0,0.0025,120]
[337503539,1725721839863,-740.74074074,0.0027,120]
[337503540,1725721839873,-151.0,0.00273973,120]
[337503541,1725721839883,-151.0,0.00273973,120]
[337503542,1725721839892,-151.0,0.00273973,120]
[337503543,1725721839902,-151.0,0.00273973,120]
[337503544,1725721839911,-151.0,0.00273973,120]
[337503545,1725721839921,-151.0,0.00273973,120]
[337503546,1725721839930,-151.0,0.00273973,120]
[337503547,1725721839939,-151.0,0.00273973,120]
[337503548,1725721839949,-164.834078,0.00273973,120]
[337503549,1725721839958,-153.384196,0.00273973,120]
[337503551,1725721839968,-151.0,0.00273973,120]
[337503553,1725721839979,-151.0,0.00273973,120]
[337503555,1725721839989,-151.0,0.00273973,120]
[337503556,1725721839999,-151.0,0.00273973,120]
[337503557,1725721840008,-151.0,0.00273973,120]
[337503558,1725721840018,-151.0,0.00273973,120]
[337503559,1725721840027,-151.0,0.00273973,120]
[337503560,1725721840037,-151.0,0.00273973,120]
[337503562,1725721840047,-151.0,0.00273973,120]
[337503563,1725721840056,-169.983056,0.00273973,120]
[337503564,1725721840065,-151.0,0.00273973,120]
[337503565,1725721840076,-151.0,0.00273973,120]
[337503566,1725721840087,-151.0,0.00273973,120]
[337503567,1725721840096,-151.0,0.00273973,120]
[337503568,1725721840107,-173.66191,0.00273973,120]
[337503569,1725721840116,-714.28571429,0.0028,120]
[337503570,1725721840126,-3029.16841524,0.00282014,120]
[337503571,1725721840135,-689.65517241,0.0029,120]
[337503572,1725721840145,-500.0,0.0029,120]
[337503573,1725721840155,-2500.0,0.003,120]
[337503574,1725721840164,-7400.0,0.003,120]
[337503575,1725721840174,-5000.0,0.003,120]
[337503576,1725721840184,-645.16129032,0.0031,120]
[337503577,1725721840193,-625.0,0.0032,120]
[337503578,1725721840203,-606.06060606,0.0033,120]
[337503579,1725721840213,-588.23529412,0.0034,120]
[337503580,1725721840223,-571.42857143,0.0035,120]
[337503581,1725721840232,-5000.0,0.0035,120]
[337503582,1725721840242,-526.31578947,0.0038,120]
[337503583,1725721840251,-9458.49786337,0.0038999,90]
[337503587,1725721840288,-353.69710574,0.0038999,90]
[337503589,1725721840316,-6142.06266678,0.0038999,90]
[337503590,1725721840342,-512.82051282,0.0039,120]
[337503591,1725721840370,-500.0,0.0039,120]
[337503592,1725721840398,-9812.19496911,0.0039999,120]
[337503593,1725721840427,-6142.06266678,0.0039999,120]
[337503594,1725721840453,-12400.2565839,0.004,120]
[337503595,1725721840480,-2500.0,0.004,120]
[337503596,1725721840505,-5000.0,0.004,120]
[337503597,1725721840708,-487.80487805,0.0041,120]
[337503598,1725721840718,-465.11627907,0.0043,120]
[337503599,1725721840728,-3029.16841524,0.00437976,120]
[337503600,1725721840738,-444.44444444,0.0045,120]
[337503601,1725721840747,-5000.0,0.0045,120]
[337503602,1725721840756,-425.53191489,0.0047,120]
[337503603,1725721840768,-416.66666667,0.0048,120]
[337503604,1725721840777,-1000.0,0.0049,120]
[337503605,1725721840787,-500.0,0.005,120]
[337503606,1725721840796,-400.0,0.005,120]
[337503607,1725721840806,-2500.0,0.005,120]
[337503608,1725721840815,-10000.0,0.005,120]
[337503609,1725721840825,-5000.0,0.005,120]
[337503610,1725721840834,-392.15686275,0.0051,120]
[337503611,1725721840844,-384.61538462,0.0052,120]
[337503612,1725721840854,-5000.0,0.0055,120]
[337503613,1725721840863,-363.63636364,0.0055,120]
[337503614,1725721840873,-357.14285714,0.0056,120]
[337503615,1725721840883,-350.87719298,0.0057,120]
[337503616,1725721840893,-1000.0,0.0059,120]
[337503617,1725721840903,-3029.16841524,0.00593938,120]
[337503618,1725721840912,-5000.0,0.006,120]
[337503619,1725721840921,-327.86885246,0.0061,120]
[337503620,1725721840931,-317.46031746,0.0063,120]
[337503621,1725721840940,-312.5,0.0064,120]
[337503622,1725721840950,-1000.0,0.0064,120]
[337503623,1725721840959,-307.69230769,0.0065,120]
[337503624,1725721840969,-5000.0,0.0065,60]
[337503625,1725721840979,-5000.0,0.0065,120]
[337503626,1725721840989,-303.03030303,0.0066,120]
[337503627,1725721840998,-294.11764706,0.0068,120]
[337503628,1725721841008,-5000.0,0.006868,120]
[337503629,1725721841020,-611.0787263,0.00687178,120]
[337503630,1725721841029,-3541.78512314,0.00689,120]
[337503631,1725721841940,3207.65859038,0.00037328,2]
[337503647,1725721845057,-25609.49848233,0.00689,120]
[337503648,1725721845070,-11217.64302545,0.00689,120]
[337503649,1725721845081,-289.85507246,0.0069,120]
[337503650,1725721845091,-1378.17,0.0069572,120]
[337503651,1725721845101,-2136.53837159,0.0069573,120]
[337503684,1725721846475,-29326.96753676,0.0069573,120]
[337503739,1725721848519,499.99999999,0.00037537,7]
[337503753,1725722739151,-870.30613644,0.00020584,2]
[337503754,1725722739172,-447.710552,0.00034337,2]
[337503755,1725722739192,-626.22707699,0.0004,120]
[337503830,1725722834175,-480.0,0.00036,30]
[337503831,1725722834200,-181.634012,0.00036404,30]
[337503832,1725722834223,-181.634012,0.0003832,30]
[337503833,1725722834252,-191.4727806,0.0004,120]
[337503834,1725722836110,-182.30014241,0.0004,120]
[337503835,1725722836135,-87.53680599,0.00040236,30]
[337503836,1725722841096,-94.09720601,0.00040236,30]
[337503837,1725722841121,-125.06186513,0.00044598,30]
[337503838,1725722846127,-81.41902633,0.00044598,30]
[337503839,1725722846149,-223.0,0.00044607,30]
[337503840,1725722846174,-11.7883637,0.00044607,5]
[337503848,1725723002642,167.2575506,0.0002799,2]
[337503849,1725723002667,236.95886089,0.0002799,2]
[337503850,1725723002692,245.0,0.0002799,2]
[337503851,1725723030711,-3000.0,0.00033917,2]
[337503852,1725723030736,-503.79630603,0.00036,30]
[337503853,1725723030763,-24900.0,0.00037108,2]
[337503854,1725723030788,-223.855276,0.00037196,2]
[337503855,1725723030812,-1429.7711721,0.00037293,2]
[337503856,1725723030839,-250.0,0.00037956,2]
[337503857,1725723030866,-250.0,0.00038061,2]
[337503858,1725723030892,-250.0,0.00038165,2]
[337503859,1725723030919,-250.0,0.00038269,2]
[337503860,1725723030945,-250.0,0.00038373,2]
[337503861,1725723030971,-250.0,0.00038477,2]
[337503862,1725723030999,-250.0,0.00038581,2]
[337503863,1725723031026,-250.0,0.00038685,2]
[337503864,1725723031053,-250.0,0.00038789,2]
[337503865,1725723031081,-250.0,0.00038893,2]
[337503866,1725723031107,-250.0,0.00038998,2]
[337503867,1725723031133,-250.0,0.00039102,2]
[337503868,1725723031160,-250.0,0.00039206,2]
[337503869,1725723031189,-250.0,0.0003931,2]
[337503870,1725723031215,-250.0,0.00039414,2]
[337503871,1725723031241,-250.0,0.00039518,2]
[337503872,1725723031267,-250.0,0.00039622,2]
[337503873,1725723031294,-250.0,0.00039726,2]
[337503874,1725723031320,-250.0,0.0003983,2]
[337503875,1725723031347,-250.0,0.00039935,2]
[337503876,1725723031371,-24191.2870398,0.00044608,2]
[337503877,1725723031397,-2928.25325288,0.00045294,28]
[337503878,1725723031421,-439.9194297,0.00045394,2]
[337503879,1725723031449,-500.0,0.00049999,7]
[337503880,1725723031475,-626.67591129,0.00049999,7]
[337503881,1725723031500,-1000.0,0.0005,120]
[337503882,1725723031525,-1000.0,0.00055,120]
[337503883,1725723031550,-223.855276,0.00055794,30]
[337503884,1725723031574,-1000.0,0.0006,120]
[337503885,1725723031600,-500.0,0.00061955,120]
[337503886,1725723031626,-1208.83,0.00061955,120]
[337503887,1725723031651,-500.0,0.00061955,120]
[337503888,1725723031687,-200.0,0.00065,12]
[337503889,1725723031726,-1000.0,0.00065,120]
[337503890,1725723031754,-500.0,0.00067434,120]
[337503891,1725723031782,-1208.83,0.00067434,120]
[337503892,1725723031808,-500.0,0.00067434,120]
[337503893,1725723031834,-166.107891,0.00068493,120]
[337503894,1725723031861,-1000.0,0.0007,120]
[337503895,1725723031887,-166.107891,0.00072098,120]
[337503896,1725723031915,-500.0,0.00072914,120]
[337503897,1725723031950,-1208.83,0.00072914,120]
[337503898,1725723031980,-166.107891,0.00075703,120]
[337503899,1725723032010,-500.0,0.00078393,120]
[337503900,1725723032039,-1208.83,0.00078393,120]
[337503901,1725723032065,-166.107891,0.00079308,120]
[337503903,1725723032091,-166.107891,0.00082913,120]
[337503907,1725723032115,-925.62,0.00083862,3]
[337503910,1725723032141,-499999.033,0.00083872,14]
[337503913,1725723032168,-500.0,0.00083873,120]
[337503914,1725723032199,-1208.83,0.00083873,120]
[337503915,1725723032224,-166.107891,0.00086518,120]
[337503919,1725723032250,-1332.89,0.00088525,3]
[337503924,1725723032275,-1110.74,0.00088525,3]
[337503929,1725723032300,-189.783898,0.00088525,120]
[337503932,1725723032325,-500.0,0.00089352,120]
[337503936,1725723032351,-1208.83,0.00089352,120]
[337503937,1725723032377,-166.107891,0.00090123,120]
[337503938,1725723032402,-166.107891,0.00093727,120]
[337503941,1725723032428,-500.0,0.00094832,120]
[337503944,1725723032456,-1208.83,0.00094832,120]
[337503947,1725723032480,-1152.62,0.00095459,120]
[337503948,1725723032505,-500.0,0.00095459,120]
[337503949,1725723032529,-166.107891,0.00097332,120]
[337503950,1725723032553,-500.0,0.00098629,120]
[337503951,1725723032577,-640.83,0.00098629,120]
[337503952,1725723032601,-500.0,0.00098629,120]
[337503953,1725723032624,-500.0,0.00098629,120]
[337503954,1725723032649,-500.0,0.00098629,120]
[337503955,1725723032673,-500.0,0.00098629,120]
[337503956,1725723032701,-500.0,0.00100311,120]
[337503957,1725723032727,-1208.83,0.00100311,120]
[337503958,1725723032751,-166.107891,0.00100937,120]
[337503959,1725723032777,-1152.62,0.00100938,120]
[337503960,1725723032802,-500.0,0.00100938,120]
[337503961,1725723032826,-487.31200002,0.00104109,120]
[337503962,1725723032850,-640.83,0.00104109,120]